bitfinex-derivatives/quotes_BTCF0:USTF0_20240814
["timestamp","ask_amount","ask_price","bid_price","bid_amount"]
[1723639737549,0.001,61210.0,61209.0,0.001]
[1723639737754,0.001,61210.0,61209.0,0.08264]
[1723639738661,0.001,61210.0,61209.0,0.08164]
[1723639738863,0.001,61210.0,61209.0,1.13176]
[1723639739053,0.001,61210.0,61209.0,1.18033486]
[1723639739252,0.08163,61217.0,61214.0,0.081633]
[1723639739557,0.081633,61215.0,61209.0,0.04863466]
[1723639739758,0.35264499,61219.0,61207.0,0.00016429]
[1723639739759,0.081642,61208.0,61207.0,0.00016429]
[1723639740654,0.163284,61208.0,61207.0,0.00016429]
[1723639740858,0.081642,61208.0,61207.0,0.00016429]
[1723639741063,0.163284,61208.0,61207.0,0.00016429]
[1723639741363,0.735046,61208.0,61207.0,0.00016429]
[1723639741569,1.135046,61208.0,61207.0,0.00016429]
[1723639741966,1.053404,61208.0,61207.0,0.00016429]
[1723639742273,1.135046,61208.0,61207.0,0.00016429]
[1723639742571,1.053404,61208.0,61207.0,0.00016429]
[1723639742772,0.653404,61208.0,61207.0,0.00016429]
[1723639743163,0.081642,61208.0,61207.0,0.00016429]
[1723639743366,0.001,61208.0,61207.0,0.00116429]
[1723639743665,0.001,61208.0,61207.0,0.08280729]
[1723639744969,0.443442,61208.0,61207.0,0.00116429]
[1723639745164,0.525084,61208.0,61207.0,0.00116429]
[1723639745468,1.415204,61208.0,61207.0,0.00116429]
[1723639746170,1.42253768,61208.0,61207.0,0.00116429]
[1723639746377,1.50417968,61208.0,61207.0,2.9e-07]
[1723639747261,1.5690433,61208.0,61207.0,2.9e-07]
[1723639747465,1.42253768,61208.0,61207.0,2.9e-07]
[1723639747665,0.163294,61204.0,61197.0,0.04863466]
[1723639747867,0.515694,61204.0,61197.0,0.04863466]
[1723639748170,0.515694,61204.0,61196.0,0.04863466]
[1723639748469,0.434047,61204.0,61198.0,0.04863466]
[1723639748676,0.434047,61204.0,61200.0,0.04863466]
[1723639748971,0.434047,61204.0,61198.0,0.04863466]
[1723639749366,0.434047,61204.0,61200.0,0.04863466]
[1723639749971,1.405854,61204.0,61199.0,0.04863466]
[1723639750181,1.405854,61204.0,61197.0,0.04863466]
[1723639750367,1.405854,61204.0,61187.0,0.08140679]
[1723639750368,1.405854,61204.0,61196.0,0.04863466]
[1723639750667,1.405854,61204.0,61195.0,0.04863466]
[1723639750861,1.405854,61204.0,61196.0,0.04863466]
[1723639751066,1.405854,61204.0,61195.0,0.04863466]
[1723639751067,1.47079182,61204.0,61195.0,0.04863466]
[1723639751272,1.47079182,61204.0,61185.0,0.08140679]
[1723639751273,1.489501,61204.0,61194.0,0.04863466]
[1723639751465,1.489501,61204.0,61193.0,0.04863466]
[1723639751674,1.489501,61204.0,61181.0,0.57763645]
[1723639751675,1.489501,61204.0,61191.0,0.04863466]
[1723639751869,0.081655,61198.0,61192.0,0.04863466]
[1723639752063,0.163328,61191.0,61190.0,0.04863466]
[1723639752268,0.163328,61191.0,61186.0,0.04863466]
[1723639752269,0.434064,61191.0,61186.0,0.04863466]
[1723639752473,0.44247,61187.0,61186.0,0.04863466]
[1723639752777,0.081672,61185.0,61182.0,0.06512543]
[1723639752965,0.36093249,61187.0,61182.0,0.06512543]
[1723639753164,0.36093249,61187.0,61174.0,0.558687]
[1723639753165,0.081672,61185.0,61184.0,0.04881764]
[1723639753379,0.72317249,61187.0,61183.0,0.04881764]
[1723639753569,0.081675,61183.0,61176.0,0.04881764]
[1723639753770,0.794883,61177.0,61175.0,0.04881764]
[1723639753966,0.794883,61177.0,61174.0,0.04881764]
[1723639753967,0.081684,61176.0,61174.0,0.04881764]
[1723639754278,0.3608,61177.0,61173.0,0.04881764]
[1723639754472,0.36232,61177.0,61173.0,0.04881764]
[1723639754665,0.3608,61177.0,61173.0,0.04881764]
[1723639754866,0.3608,61177.0,61172.0,0.54051764]
[1723639755168,0.081688,61173.0,61172.0,0.54051764]
[1723639755373,0.081688,61173.0,61172.0,0.4917]
[1723639755580,0.00012316,61176.0,61168.0,0.04881764]
[1723639755581,0.3608,61174.0,61168.0,0.04881764]
[1723639755774,0.3608,61174.0,61165.0,0.06512543]
[1723639755775,0.081695,61168.0,61165.0,0.06512543]
[1723639755978,0.081695,61168.0,61164.0,0.06512543]
[1723639756175,0.3608,61169.0,61164.0,0.06512543]
[1723639756378,0.3608,61169.0,61168.0,0.04872994]
[1723639756566,0.3608,61169.0,61168.0,0.04872635]
[1723639756766,0.3608,61169.0,61167.0,0.04872635]
[1723639756967,0.3608,61169.0,61164.0,0.06512543]
[1723639756968,0.3608,61169.0,61168.0,0.04872634]
[1723639757270,0.3608,61169.0,61167.0,0.04870765]
[1723639757869,0.3608,61169.0,61168.0,0.04870642]
[1723639758065,0.794893,61169.0,61160.0,0.04870642]
[1723639758274,0.3608,61162.0,61157.0,0.328]
[1723639758470,0.00013249,61161.0,61158.0,0.081708]
[1723639758878,0.00013249,61161.0,61154.0,0.54400642]
[1723639759271,0.00013249,61161.0,61154.0,0.4953]
[1723639759471,0.00013249,61161.0,61157.0,0.081708]
[1723639759780,0.00013249,61161.0,61158.0,0.081707]
[1723639759967,0.00013249,61161.0,61160.0,0.081705]
[1723639760267,0.00024519,61164.0,61163.0,0.081701]
[1723639760477,0.00024519,61164.0,61163.0,0.49113994]
[1723639760668,0.00024519,61164.0,61163.0,1.38161994]
[1723639760869,0.00024519,61164.0,61163.0,0.442501]
[1723639761075,0.00024519,61164.0,61163.0,0.3608]
[1723639761269,0.00024519,61164.0,61158.0,0.06512543]
[1723639761270,0.081704,61161.0,61158.0,0.04863894]
[1723639761481,0.001,61161.0,61156.0,0.40943894]
[1723639761676,0.001,61161.0,61159.0,0.081706]
[1723639762185,0.001,61161.0,61154.0,0.55128752]
[1723639762186,0.081711,61156.0,61154.0,0.54393894]
[1723639762475,0.3608,61158.0,61154.0,0.4953]
[1723639762676,0.3608,61158.0,61156.0,0.08171]
[1723639763583,0.3608,61158.0,61153.0,5.817e-05]
[1723639763584,0.49056,61157.0,61153.0,5.817e-05]
[1723639763777,0.434113,61154.0,61153.0,5.817e-05]
[1723639764172,1.488099,61154.0,61153.0,5.817e-05]
[1723639764376,1.088099,61154.0,61153.0,5.817e-05]
[1723639764675,0.51594628,61154.0,61153.0,5.817e-05]
[1723639764869,0.43423328,61154.0,61153.0,5.817e-05]
[1723639765073,1.40650628,61154.0,61153.0,5.817e-05]
[1723639765471,1.48821928,61154.0,61153.0,1.7e-07]
[1723639765683,0.081742,61133.0,61132.0,0.04863894]
[1723639765986,0.081742,61133.0,61118.0,0.09473645]
[1723639765987,0.3608,61133.0,61125.0,0.081751]
[1723639766181,0.3608,61133.0,61128.0,0.081748]
[1723639766381,0.3608,61133.0,61129.0,0.081747]
[1723639766679,0.3608,61133.0,61121.0,0.04863894]
[1723639766680,0.00015787,61132.0,61124.0,0.04863894]
[1723639767277,0.00015787,61132.0,61131.0,0.081744]
[1723639767780,0.0002454,61137.0,61131.0,0.081744]
[1723639767781,0.0002454,61137.0,61136.0,0.081738]
[1723639768184,0.3608,61152.0,61136.0,1.25152]
[1723639768385,0.3608,61152.0,61137.0,0.95730154]
[1723639768572,0.001,61154.0,61146.0,0.3608]
[1723639768777,0.001,61154.0,61147.0,0.4877]
[1723639768978,0.001,61154.0,61153.0,0.081715]
[1723639769281,0.3524,61168.0,61161.0,0.081704]
[1723639769784,0.3608,61167.0,61160.0,0.081705]
[1723639769990,0.3608,61167.0,61155.0,0.04860154]
[1723639769991,0.3608,61167.0,61159.0,0.3608]
[1723639770289,0.0002454,61171.0,61164.0,0.442499]
[1723639770490,0.0002454,61171.0,61164.0,0.3608]
[1723639770677,0.0002454,61171.0,61164.0,0.40940154]
[1723639771287,0.0002454,61171.0,61168.0,0.04860154]
[1723639771483,0.0002454,61171.0,61170.0,0.081692]
[1723639771690,0.0002454,61171.0,61170.0,0.481692]
[1723639771986,0.0002454,61171.0,61170.0,0.081692]
[1723639772188,0.0002454,61171.0,61170.0,0.04862985]
[1723639772377,0.0002454,61171.0,61170.0,0.081692]
[1723639772686,0.3608,61180.0,61175.0,0.081684]
[1723639772876,0.3608,61180.0,61179.0,0.08168]
[1723639773189,0.3524,61189.0,61179.0,0.3608]
[1723639773483,0.3608,61198.0,61188.0,0.3608]
[1723639773681,0.3608,61198.0,61190.0,0.081665]
[1723639773881,0.3608,61198.0,61191.0,0.04863986]
[1723639774081,0.3608,61198.0,61196.0,0.081656]
[1723639774278,0.3608,61198.0,61193.0,0.04863986]
[1723639774477,0.3608,61198.0,61194.0,0.081659]
[1723639774789,0.3608,61198.0,61195.0,0.081659]
[1723639775487,0.3608,61198.0,61193.0,0.04863986]
[1723639775785,0.3608,61198.0,61197.0,0.081656]
[1723639775974,0.00024519,61203.0,61202.0,0.081649]
[1723639776177,0.00024519,61203.0,61202.0,0.481649]
[1723639776373,0.00024519,61203.0,61202.0,0.571809]
[1723639776574,0.00024519,61203.0,61202.0,0.49016]
[1723639776780,0.00024519,61203.0,61202.0,0.3608]
[1723639777185,0.00024519,61203.0,61202.0,0.442449]
[1723639777485,0.08189319,61203.0,61202.0,0.3608]
[1723639777688,0.00024519,61203.0,61202.0,0.3608]
[1723639777888,0.08189319,61203.0,61202.0,0.3608]
[1723639778183,0.00024519,61203.0,61202.0,0.3608]
[1723639779482,0.08189319,61203.0,61202.0,0.3608]
[1723639779684,0.00024519,61203.0,61202.0,0.3608]
[1723639780288,0.00024519,61203.0,61202.0,0.442449]
[1723639780986,0.3524,61221.0,61202.0,1.25096]
[1723639781187,0.081629,61218.0,61212.0,0.3608]
[1723639781402,0.3524,61221.0,61212.0,0.3608]
[1723639781880,0.081631,61217.0,61212.0,0.3608]
[1723639782085,0.3524,61221.0,61212.0,0.3608]
[1723639782392,0.35264519,61221.0,61219.0,0.3608]
[1723639782585,0.35264519,61221.0,61212.0,0.3608]
[1723639782783,0.081625,61220.0,61212.0,0.3608]
[1723639782984,0.00024519,61221.0,61218.0,0.3608]
[1723639783186,0.00124519,61221.0,61218.0,0.3608]
[1723639784092,0.00024519,61221.0,61218.0,0.3608]
[1723639784791,0.001,61220.0,61218.0,0.3608]
[1723639785388,0.001,61220.0,61219.0,0.081627]
[1723639787196,0.00024519,61221.0,61219.0,0.971667]
[1723639787394,0.081597,61242.0,61221.0,0.081624]
[1723639787695,0.081595,61244.0,61237.0,0.3608]
[1723639788093,1.28206,61254.0,61243.0,0.3608]
[1723639788094,0.00136,61254.0,61243.0,0.3608]
[1723639788292,0.081578,61256.0,61249.0,0.3608]
[1723639788488,0.3524,61263.0,61255.0,0.3608]
[1723639788489,0.081573,61260.0,61255.0,0.3608]
[1723639788692,0.081573,61259.0,61255.0,0.3608]
[1723639788896,0.3524,61263.0,61255.0,0.3608]
[1723639789193,0.3524,61263.0,61261.0,0.3608]
[1723639789589,0.081569,61262.0,61261.0,0.3608]
[1723639791191,0.00024498,61263.0,61261.0,0.3608]
[1723639792107,0.081578,61256.0,61255.0,0.00024498]
[1723639792801,0.88976,61256.0,61242.0,0.3608]
[1723639793100,0.3524,61258.0,61247.0,0.3608]
[1723639793596,0.012,61262.0,61247.0,0.44239]
[1723639793803,0.081578,61257.0,61247.0,0.3608]
[1723639794000,0.081571,61261.0,61255.0,0.081579]
[1723639794597,0.081572,61260.0,61259.0,0.3608]
[1723639795090,0.081572,61260.0,61252.0,0.3608]
[1723639795296,0.081582,61253.0,61252.0,0.3608]
[1723639796000,0.081587,61249.0,61248.0,0.00024498]
[1723639796191,0.163174,61249.0,61248.0,0.00024498]
[1723639796392,0.4898,61248.0,61240.0,0.00084]
[1723639796593,0.081603,61237.0,61236.0,0.22868]
[1723639796798,0.3608,61253.0,61234.0,0.3608]
[1723639797013,0.3608,61253.0,61242.0,0.3608]
[1723639797301,0.3608,61253.0,61244.0,0.081593]
[1723639797302,0.081584,61251.0,61244.0,0.081593]
[1723639797697,0.081584,61251.0,61242.0,0.3608]
[1723639798103,0.3524,61250.0,61242.0,0.3608]
[1723639798401,0.3608,61252.0,61241.0,0.00024498]
[1723639798402,0.163192,61242.0,61241.0,0.00024498]
[1723639798792,0.653072,61242.0,61241.0,0.00024498]
[1723639798993,0.081596,61242.0,61241.0,0.00024498]
[1723639799194,0.36811263,61252.0,61241.0,0.00024498]
[1723639799195,0.081592,61246.0,61241.0,0.00024498]
[1723639799403,0.442384,61252.0,61245.0,0.081592]
[1723639799701,0.081585,61251.0,61245.0,0.081592]
[1723639799900,0.3608,61252.0,61241.0,0.36104498]
[1723639800102,0.081588,61249.0,61241.0,0.36104498]
[1723639800294,0.081585,61251.0,61241.0,0.36104498]
[1723639800695,0.001,61251.0,61242.0,0.001]
[1723639801096,0.081595,61243.0,61242.0,0.001]
[1723639801297,0.082587,61249.0,61241.0,0.00124498]
[1723639801496,0.001,61249.0,61248.0,0.442388]
[1723639802191,0.001,61249.0,61248.0,0.3608]
[1723639802706,0.001,61249.0,61248.0,0.442388]
[1723639802899,0.001,61249.0,61248.0,0.3608]
[1723639803303,0.164174,61249.0,61241.0,0.00124498]
[1723639803497,0.163194,61242.0,61241.0,0.00124498]
[1723639803700,0.433997,61242.0,61241.0,0.00124498]
[1723639803999,0.081597,61242.0,61241.0,0.00124498]
[1723639804202,0.3608,61244.0,61241.0,0.00124498]
[1723639804395,0.001,61249.0,61241.0,0.00124498]
[1723639804598,0.001,61249.0,61241.0,0.36204498]
[1723639804802,0.001,61249.0,61248.0,0.3608]
[1723639805204,0.08182698,61254.0,61248.0,0.442388]
[1723639805205,0.001,61251.0,61248.0,0.442388]
[1723639805401,0.001,61251.0,61248.0,0.3608]
[1723639805802,0.001,61251.0,61250.0,0.081586]
[1723639806104,0.00024498,61254.0,61250.0,0.442386]
[1723639806295,0.00024498,61254.0,61250.0,0.3608]
[1723639806494,0.081584,61252.0,61250.0,0.3608]
[1723639806703,0.081584,61252.0,61245.0,0.081591]
[1723639806704,0.00024498,61254.0,61246.0,0.3608]
[1723639807907,0.00024498,61254.0,61249.0,0.081587]
[1723639808099,0.00024498,61254.0,61246.0,0.3608]
[1723639808100,0.08182598,61254.0,61246.0,0.3608]
[1723639808296,0.08182598,61254.0,61251.0,0.3608]
[1723639809200,0.08182598,61254.0,61253.0,0.081582]
[1723639809201,0.00024498,61254.0,61253.0,0.081582]
[1723639809408,0.3225,61283.0,61266.0,0.081563]
[1723639809409,0.4279,61280.0,61266.0,0.081563]
[1723639809597,0.081551,61276.0,61271.0,0.3608]
[1723639809800,0.081553,61275.0,61271.0,0.3608]
[1723639810003,0.442344,61282.0,61271.0,0.3608]
[1723639810004,0.081545,61281.0,61271.0,0.3608]
[1723639810197,0.06490606,61291.0,61271.0,0.3608]
[1723639810402,0.081523,61298.0,61283.0,0.3608]
[1723639810403,0.081535,61289.0,61283.0,0.3608]
[1723639810607,0.081537,61287.0,61283.0,0.3608]
[1723639810903,0.081537,61287.0,61283.0,0.30369792]
[1723639810904,0.06490606,61286.0,61283.0,0.30369792]
[1723639811104,0.08154,61285.0,61283.0,0.30369792]
[1723639811308,1.19446861,61286.0,61275.0,0.00024478]
[1723639811507,0.163102,61276.0,61275.0,0.00024478]
[1723639811696,0.081555,61273.0,61272.0,0.00084]
[1723639811897,0.081575,61259.0,61257.0,0.3608]
[1723639812107,0.081555,61273.0,61257.0,0.3608]
[1723639812108,0.081575,61258.0,61257.0,0.3608]
[1723639812400,0.06472118,61264.0,61261.0,0.081571]
[1723639812607,0.06472118,61264.0,61257.0,0.3608]
[1723639813003,0.06472118,61264.0,61263.0,0.081568]
[1723639813208,0.081555,61273.0,61262.0,0.3608]
[1723639813209,0.06472118,61265.0,61262.0,0.3608]
[1723639813405,0.081568,61263.0,61262.0,0.3608]
[1723639814102,0.001,61264.0,61256.0,0.00024478]
[1723639814305,0.081576,61257.0,61256.0,0.00024478]
[1723639815100,1.16093566,61257.0,61256.0,7.8e-07]
[1723639815307,1.57780192,61257.0,61256.0,7.8e-07]
[1723639815607,2.04260192,61257.0,61256.0,7.8e-07]
[1723639815797,2.04260192,61257.0,61237.0,0.3608]
[1723639815798,0.081605,61236.0,61230.0,0.81715091]
[1723639815997,0.06478761,61234.0,61230.0,0.4908]
[1723639816198,0.06478761,61232.0,61230.0,0.4908]
[1723639816412,0.081611,61231.0,61230.0,0.4908]
[1723639816908,0.14639861,61231.0,61230.0,0.4908]
[1723639817103,0.14639861,61231.0,61229.0,0.00017089]
[1723639817104,0.081612,61230.0,61229.0,0.00017089]
[1723639817306,0.10807033,61230.0,61229.0,0.00017089]
[1723639817505,0.28686374,61230.0,61229.0,0.00017089]
[1723639817703,0.18968233,61230.0,61229.0,0.00017089]
[1723639818112,0.02645833,61230.0,61229.0,0.00017089]
[1723639818316,0.08095167,61230.0,61229.0,0.00017089]
[1723639818508,0.3608,61234.0,61229.0,0.49013089]
[1723639818509,0.06476787,61231.0,61229.0,0.49013089]
[1723639818712,0.3608,61234.0,61229.0,0.49013089]
[1723639818713,0.08161,61232.0,61229.0,0.00017089]
[1723639819207,0.443405,61236.0,61229.0,0.00017089]
[1723639819208,0.081612,61230.0,61229.0,0.00017089]
[1723639819806,0.442412,61230.0,61229.0,0.00017089]
[1723639820001,0.081612,61230.0,61229.0,0.36097089]
[1723639820218,0.081612,61230.0,61229.0,0.00017089]
[1723639820804,0.3608,61236.0,61229.0,0.00017089]
[1723639820805,0.3608,61236.0,61229.0,0.36097089]
[1723639821513,0.001,61230.0,61229.0,0.36097089]
[1723639821904,0.082612,61230.0,61229.0,0.36097089]
[1723639822506,0.082612,61230.0,61229.0,0.00017089]
[1723639822711,0.164224,61230.0,61229.0,0.00017089]
[1723639822910,1.006584,61230.0,61229.0,0.00017089]
[1723639823117,1.006584,61230.0,61229.0,8.9e-07]
[1723639823118,1.40677119,61230.0,61229.0,8.9e-07]
[1723639823305,1.40677119,61230.0,61224.0,0.00024478]
[1723639823306,0.163238,61225.0,61224.0,0.00024478]
[1723639823612,0.524038,61225.0,61224.0,7.8e-07]
[1723639823807,1.414038,61225.0,61224.0,7.8e-07]
[1723639824001,1.495657,61225.0,61224.0,7.8e-07]
[1723639824512,0.081648,61203.0,61202.0,0.32635091]
[1723639824712,0.36093182,61203.0,61194.0,0.00084]
[1723639824910,0.36093182,61203.0,61192.0,0.3608]
[1723639825108,0.081654,61199.0,61192.0,0.3608]
[1723639825304,0.36093182,61203.0,61192.0,0.3608]
[1723639825502,0.00013182,61203.0,61202.0,0.44245]
[1723639825911,0.00013182,61203.0,61202.0,0.93261]
[1723639826105,0.00013182,61203.0,61199.0,0.4765]
[1723639826513,0.00013182,61203.0,61197.0,0.3608]
[1723639826514,0.08178082,61203.0,61197.0,0.3608]
[1723639826915,0.081655,61198.0,61197.0,0.3608]
[1723639827508,0.081666,61190.0,61188.0,0.83814]
[1723639827714,0.00016136,61190.0,61188.0,0.83814]
[1723639827921,0.00016136,61190.0,61189.0,0.49028]
[1723639828219,0.442444,61207.0,61189.0,0.49028]
[1723639828413,0.3608,61207.0,61199.0,0.3608]
[1723639828810,0.3608,61216.0,61200.0,0.081652]
[1723639828811,0.00024499,61204.0,61200.0,0.081652]
[1723639829120,0.00024499,61204.0,61203.0,0.081648]
[1723639829321,0.3608,61216.0,61199.0,0.7216]
[1723639829322,0.3608,61216.0,61200.0,0.4902]
[1723639829531,0.082605,61236.0,61215.0,0.3608]
[1723639829532,0.3608,61227.0,61215.0,0.3608]
[1723639829817,0.081619,61226.0,61211.0,0.3608]
[1723639830007,0.081618,61226.0,61211.0,0.3608]
[1723639830207,0.081636,61212.0,61211.0,0.3608]
[1723639830413,0.081652,61200.0,61199.0,0.68715091]
[1723639830613,0.081652,61200.0,61199.0,0.32635091]
[1723639831011,0.3608,61203.0,61199.0,0.32635091]
[1723639831311,0.081642,61208.0,61199.0,0.32635091]
[1723639831510,0.081644,61207.0,61199.0,0.68715091]
[1723639831717,0.3608,61208.0,61199.0,0.32635091]
[1723639831909,0.3608,61215.0,61194.0,0.3608]
[1723639832115,0.3608,61215.0,61201.0,0.3608]
[1723639832116,0.00024499,61210.0,61201.0,0.3608]
[1723639832418,0.00024499,61210.0,61202.0,0.08165]
[1723639833123,0.00024499,61210.0,61201.0,0.3608]
[1723639833315,0.00024499,61210.0,61207.0,0.3608]
[1723639834214,0.00024499,61210.0,61208.0,0.4539]
[1723639835021,0.00024499,61210.0,61207.0,0.3608]
[1723639835218,0.00024499,61210.0,61202.0,0.3608]
[1723639835524,0.081658,61196.0,61195.0,0.3608]
[1723639835828,0.081651,61201.0,61195.0,0.3608]
[1723639838624,0.081661,61194.0,61193.0,0.00024499]
[1723639838825,0.163322,61194.0,61193.0,0.00024499]
[1723639839015,0.163322,61194.0,61180.0,0.3608]
[1723639839016,0.081674,61184.0,61180.0,0.3608]
[1723639839219,0.081662,61193.0,61174.0,0.78295091]
[1723639839220,0.3608,61189.0,61174.0,0.86547791]
[1723639839416,0.3608,61189.0,61174.0,0.86463791]
[1723639839618,0.3608,61189.0,61176.0,0.081684]
[1723639839619,0.081674,61184.0,61176.0,0.081684]
[1723639839822,0.081669,61188.0,61179.0,0.3608]
[1723639840125,0.081665,61191.0,61180.0,0.081679]
[1723639840321,0.08166,61195.0,61187.0,0.3608]
[1723639840524,0.3608,61196.0,61190.0,0.3608]
[1723639840525,0.00024499,61192.0,61190.0,0.3608]
[1723639840826,0.00024499,61192.0,61190.0,0.442465]
[1723639841523,0.00024499,61192.0,61190.0,0.3608]
[1723639841731,0.00024499,61192.0,61191.0,0.081665]
[1723639842415,0.081649,61203.0,61191.0,0.89028]
[1723639842621,0.3608,61204.0,61199.0,0.442453]
[1723639842815,0.081649,61203.0,61192.0,0.4879]
[1723639843018,0.3608,61204.0,61192.0,0.4879]
[1723639843219,0.081643,61208.0,61200.0,0.3608]
[1723639843426,0.081635,61214.0,61207.0,0.3608]
[1723639843726,0.00024499,61210.0,61207.0,0.3608]
[1723639843918,0.081644,61207.0,61200.0,0.442453]
[1723639844117,0.00024499,61210.0,61200.0,0.3608]
[1723639844318,0.00024499,61210.0,61207.0,0.3608]
[1723639845624,0.00024499,61210.0,61208.0,0.081641]
[1723639845818,0.3608,61224.0,61215.0,0.081633]
[1723639845819,0.081622,61224.0,61215.0,0.081633]
[1723639846128,0.4116,61235.0,61215.0,0.081633]
[1723639846129,0.00760887,61234.0,61215.0,0.3608]
[1723639846318,0.3608,61237.0,61215.0,0.3608]
[1723639846319,0.081626,61221.0,61216.0,0.4902]
[1723639846622,0.3608,61228.0,61216.0,0.4902]
[1723639846623,0.3608,61223.0,61216.0,0.4902]
[1723639846838,0.3608,61228.0,61216.0,0.4902]
[1723639846839,0.3608,61228.0,61220.0,0.3608]
[1723639847122,0.3608,61228.0,61222.0,0.081623]
[1723639847325,0.3608,61228.0,61220.0,0.3608]
[1723639847326,0.00024499,61226.0,61220.0,0.3608]
[1723639847521,0.081623,61223.0,61220.0,0.3608]
[1723639847717,0.00024499,61226.0,61220.0,0.3608]
[1723639847920,0.3528,61225.0,61216.0,0.4902]
[1723639848127,0.00024499,61226.0,61213.0,0.36104499]
[1723639848128,0.3528,61217.0,61213.0,0.36104499]
[1723639848331,0.081629,61219.0,61213.0,0.36104499]
[1723639849029,0.3608,61220.0,61213.0,0.36104499]
[1723639849030,0.08163,61218.0,61213.0,0.36104499]
[1723639849219,0.081634,61215.0,61213.0,0.36104499]
[1723639849621,0.081634,61214.0,61213.0,0.36104499]
[1723639850424,0.081634,61214.0,61213.0,0.00024499]
[1723639850819,0.081646,61205.0,61201.0,0.0486533]
[1723639851025,1.25088,61214.0,61200.0,0.04820443]
[1723639851026,0.081651,61201.0,61200.0,0.04820443]
[1723639851215,1.251,61201.0,61184.0,0.3608]
[1723639851423,0.3528,61192.0,61184.0,0.3608]
[1723639851824,0.081669,61188.0,61184.0,0.3608]
[1723639852128,0.3528,61192.0,61184.0,0.3608]
[1723639852327,0.081669,61188.0,61184.0,0.3608]
[1723639852530,0.08167,61187.0,61184.0,0.3608]
[1723639852928,0.081672,61186.0,61184.0,0.3608]
[1723639853325,0.081673,61185.0,61184.0,0.3608]
[1723639853934,0.081674,61184.0,61183.0,0.00011725]
[1723639854328,0.442474,61184.0,61183.0,0.00011725]
[1723639854734,0.605822,61184.0,61183.0,0.00011725]
[1723639854932,1.096142,61184.0,61183.0,0.00011725]
[1723639855233,1.497142,61184.0,61183.0,0.00011725]
[1723639856634,1.497142,61184.0,61182.0,0.00024499]
[1723639856635,0.245025,61183.0,61182.0,0.00024499]
[1723639856827,0.65367,61183.0,61182.0,0.00024499]
[1723639857023,1.05367,61183.0,61182.0,0.00024499]
[1723639857436,0.081675,61183.0,61182.0,0.00024499]
[1723639857737,0.16346725,61183.0,61182.0,0.00024499]
[1723639857934,1.01458725,61183.0,61182.0,0.00024499]
[1723639858326,0.44259225,61183.0,61182.0,0.00024499]
[1723639859032,0.93291225,61183.0,61182.0,0.00024499]
[1723639859237,1.49626225,61183.0,61182.0,0.00024499]
[1723639859436,0.081689,61173.0,61164.0,0.4744]
[1723639859736,0.081699,61165.0,61164.0,0.4744]
[1723639860233,0.3528,61167.0,61159.0,0.081706]
[1723639860432,0.00011725,61172.0,61164.0,0.3608]
[1723639860633,0.00011725,61172.0,61171.0,0.3608]
[1723639860935,0.00011725,61172.0,61164.0,0.3608]
[1723639861238,0.0002452,61169.0,61164.0,0.3608]
[1723639861434,0.0002452,61169.0,61168.0,0.081695]
[1723639861631,0.00011725,61172.0,61171.0,0.081691]
[1723639861829,0.001,61173.0,61172.0,0.08169]
[1723639862025,0.001,61173.0,61172.0,0.57213]
[1723639862224,0.001,61173.0,61172.0,1.94563]
[1723639862829,0.00780716,61183.0,61174.0,0.081687]
[1723639863025,0.081675,61184.0,61172.0,0.97438]
[1723639863026,0.0002452,61179.0,61172.0,0.97438]
[1723639863236,0.3528,61195.0,61178.0,0.3608]
[1723639863429,0.081665,61192.0,61182.0,0.081677]
[1723639863828,0.3608,61191.0,61179.0,0.4554]
[1723639864037,0.442466,61191.0,61179.0,0.4554]
[1723639864227,0.3528,61195.0,61190.0,0.3608]
[1723639864627,0.3608,61198.0,61190.0,0.3608]
[1723639864928,0.3608,61198.0,61191.0,0.081665]
[1723639865130,0.3608,61198.0,61190.0,0.3608]
[1723639865131,0.0002452,61191.0,61190.0,0.3608]
[1723639865538,0.0002452,61191.0,61190.0,1.332746]
[1723639865835,0.3608,61207.0,61190.0,1.332746]
[1723639865836,0.081644,61207.0,61190.0,1.25108]
[1723639866034,0.081639,61211.0,61206.0,0.3608]
[1723639866237,0.434433,61215.0,61206.0,0.3608]
[1723639866434,0.081639,61211.0,61206.0,0.3608]
[1723639866634,0.3528,61215.0,61206.0,0.3608]
[1723639866940,0.434433,61215.0,61206.0,0.442445]
[1723639867144,0.081634,61214.0,61206.0,0.442445]
[1723639867336,0.081636,61213.0,61206.0,0.3608]
[1723639867641,0.001,61211.0,61206.0,0.3618]
[1723639868348,0.0012452,61215.0,61206.0,0.3618]
[1723639869036,0.0012452,61215.0,61206.0,0.443445]
[1723639869232,0.0012452,61215.0,61206.0,0.3618]
[1723639869433,0.0012452,61215.0,61209.0,0.081641]
[1723639869635,0.0012452,61215.0,61206.0,0.3618]
[1723639869941,0.0002452,61215.0,61214.0,0.081634]
[1723639870731,0.0002452,61215.0,61211.0,0.3608]
[1723639870934,0.081635,61214.0,61211.0,0.3608]
[1723639871141,0.3530452,61215.0,61211.0,0.3608]
[1723639871342,0.0002452,61215.0,61211.0,0.3608]
[1723639871540,0.0002452,61215.0,61211.0,0.442438]
[1723639871747,0.0002452,61215.0,61212.0,0.081636]
[1723639872447,0.0002452,61215.0,61213.0,0.081635]
[1723639872648,0.0002452,61215.0,61211.0,0.3608]
[1723639873046,0.081637,61212.0,61206.0,0.3608]
[1723639873343,0.081637,61212.0,61202.0,0.0002452]
[1723639873344,0.081649,61203.0,61202.0,0.0002452]
[1723639873544,0.442449,61203.0,61202.0,0.0002452]
[1723639873849,0.442449,61203.0,61190.0,0.3608]
[1723639873850,0.081665,61191.0,61190.0,0.3608]
[1723639874150,0.081665,61191.0,61175.0,0.06512543]
[1723639874151,0.081669,61188.0,61181.0,0.3608]
[1723639874339,0.081671,61187.0,61181.0,0.3608]
[1723639874654,0.71496,61191.0,61157.0,0.3608]
[1723639874655,0.7056,61182.0,61157.0,0.3608]
[1723639874841,0.3528,61168.0,61157.0,0.3608]
[1723639875147,0.3528,61168.0,61163.0,0.0002452]
[1723639875451,0.795296,61168.0,61163.0,0.0002452]